bitfinex-derivatives/quotes_ETHF0:USTF0_20260121
["timestamp","ask_amount","ask_price","bid_price","bid_amount"]
[1769023476929,3.67159342,2938.2,2936.6,3.57132635]
[1769023477231,3.66892753,2939.2,2937.2,3.57129635]
[1769023477435,3.83915753,2939.7,2937.5,3.40092635]
[1769023478025,3.83918753,2939.1,2937.5,0.00240902]
[1769023478327,3.66892753,2939.1,2937.5,3.40333537]
[1769023478633,3.66892753,2939.1,2937.5,0.00240902]
[1769023479032,3.66892753,2938.4,2937.5,0.00240902]
[1769023479223,3.83922753,2938.4,2936.0,3.40092635]
[1769023479429,3.83922753,2938.4,2936.2,3.40092635]
[1769023480234,3.66892753,2938.4,2936.6,3.40092635]
[1769023480437,3.66892753,2938.8,2936.6,3.57132635]
[1769023480625,1.894,2939.4,2936.6,3.57132635]
[1769023480826,3.66892753,2938.3,2936.2,0.00407322]
[1769023481031,3.83924753,2938.0,2936.2,3.40499957]
[1769023481227,3.66892753,2938.5,2936.5,3.40092635]
[1769023482637,3.66892753,2938.2,2936.2,0.00407322]
[1769023482939,3.66892753,2938.2,2936.5,3.40092635]
[1769023484140,3.66892753,2938.2,2936.5,3.57133635]
[1769023484843,3.66892753,2938.2,2936.2,0.00407322]
[1769023485032,3.83925753,2938.0,2936.2,0.00407322]
[1769023485335,3.66892753,2938.4,2936.3,3.40092635]
[1769023485536,3.66892753,2938.4,2936.3,3.57134635]
[1769023486537,3.58684597,2938.2,2936.4,0.17041]
[1769023489645,3.58684597,2938.7,2936.6,0.1704]
[1769023490638,3.58684597,2938.3,2936.6,0.1704]
[1769023490840,3.75715597,2938.3,2936.4,3.53579713]
[1769023491142,3.58684597,2938.0,2936.2,0.17450322]
[1769023492048,3.58684597,2938.0,2936.5,0.17041]
[1769023492444,3.58684597,2938.0,2936.6,0.1704]
[1769023492644,3.58684597,2938.5,2936.6,0.1704]
[1769023493547,3.58684597,2938.5,2936.7,0.1704]
[1769023493943,3.58684597,2938.5,2936.8,0.17039]
[1769023494847,3.58684597,2938.5,2936.9,0.17039]
[1769023495550,1.893,2939.1,2936.2,0.00407322]
[1769023495551,3.58684597,2937.8,2936.2,0.00407322]
[1769023496242,11.83406764,2939.4,2936.2,0.00407322]
[1769023496243,3.58684597,2937.4,2936.2,0.00407322]
[1769023496449,3.76158731,2937.4,2936.2,0.00407322]
[1769023497447,3.59122731,2937.4,2936.2,0.00407322]
[1769023499949,3.59122731,2937.4,2935.7,3.53579713]
[1769023499950,3.4758635,2937.2,2935.3,0.17048]
[1769023500246,3.4758635,2937.2,2934.7,3.65995875]
[1769023500443,3.4758635,2936.7,2934.7,3.65995875]
[1769023500652,3.4758635,2937.2,2935.2,3.83043875]
[1769023500842,3.4758635,2937.2,2935.4,3.83042875]
[1769023501341,3.4758635,2937.2,2935.2,0.00267492]
[1769023501652,3.6462435,2937.0,2935.2,0.00267492]
[1769023502051,3.4758635,2937.0,2935.3,3.83043875]
[1769023502447,3.4758635,2937.0,2935.4,0.17047]
[1769023502648,0.00438134,2937.4,2935.9,0.17044]
[1769023503448,0.00438134,2937.4,2936.3,0.17042]
[1769023503755,0.00438134,2937.4,2936.5,0.17041]
[1769023504648,3.4758635,2938.5,2936.7,0.1704]
[1769023505754,3.47934389,2938.5,2936.7,0.1704]
[1769023505945,3.47934389,2938.5,2936.9,0.17039]
[1769023506955,0.00348039,2938.5,2937.2,0.17037]
[1769023507153,0.00348039,2938.5,2936.9,3.65995875]
[1769023507758,0.00348039,2938.5,2937.5,0.17035]
[1769023507959,0.00348039,2938.5,2937.5,0.17457153]
[1769023508156,0.00348039,2938.5,2936.9,3.65995875]
[1769023508157,3.47934389,2938.5,2936.9,0.17039]
[1769023508363,3.6461735,2938.2,2936.3,0.17042]
[1769023508553,3.4758635,2938.0,2936.3,0.17042]
[1769023509058,3.4758635,2937.8,2935.9,3.65995875]
[1769023509251,3.4758635,2937.8,2935.9,0.00361776]
[1769023509559,3.4758635,2937.5,2935.9,0.00361776]
[1769023510059,3.4758635,2937.3,2935.9,0.00361776]
[1769023510262,1.893,2937.5,2935.0,0.1705]
[1769023510263,3.4758635,2937.1,2935.0,0.1705]
[1769023510458,1.893,2937.5,2935.0,0.1705]
[1769023510459,3.4758635,2936.9,2935.0,0.1705]
[1769023510661,3.4758635,2936.6,2934.4,3.65995875]
[1769023511155,3.4758635,2936.6,2934.4,3.66264684]
[1769023511954,3.4758635,2936.6,2934.8,0.17051]
[1769023512359,3.4758635,2937.1,2934.4,3.66264684]
[1769023513164,3.4758635,2937.1,2935.3,3.83043875]
[1769023513362,3.4758635,2937.1,2935.4,0.17047]
[1769023513562,3.4758635,2937.6,2935.8,0.17045]
[1769023514168,3.4758635,2937.6,2934.6,4.23881605]
[1769023514169,3.4758635,2937.6,2936.1,0.17043]
[1769023514665,3.4758635,2937.6,2936.3,0.17042]
[1769023514867,3.4758635,2938.2,2936.3,0.17042]
[1769023515061,0.97984832,2938.1,2936.3,0.17042]
[1769023515360,3.66957375,2937.9,2935.7,0.17046]
[1769023516667,3.66957375,2937.9,2935.9,0.17045]
[1769023518263,1.46243364,2938.2,2935.4,3.65995875]
[1769023518264,3.66957375,2937.7,2935.4,3.65995875]
[1769023518566,3.66957375,2937.5,2935.4,3.83042875]
[1769023518765,3.66957375,2937.5,2935.6,0.17046]
[1769023518966,3.66957375,2937.5,2935.7,0.17046]
[1769023519170,3.66957375,2937.5,2935.4,3.65995875]
[1769023519171,3.66957375,2937.5,2936.0,0.17044]
[1769023521764,3.66957375,2937.5,2935.4,1.46243364]
[1769023521765,3.66957375,2937.5,2935.3,3.68345951]
[1769023521965,3.66957375,2937.5,2935.6,0.17046]
[1769023522363,3.66957375,2937.5,2935.7,0.17046]
[1769023522564,3.66957375,2937.5,2935.9,0.17044]
[1769023522764,3.66957375,2937.5,2936.0,0.17044]
[1769023524360,3.66957375,2937.5,2936.1,0.17043]
[1769023524968,3.66957375,2938.3,2936.4,0.17042]
[1769023525268,3.66957375,2938.2,2936.8,0.17039]
[1769023525572,3.66957375,2938.2,2936.8,0.17440535]
[1769023529575,3.66957375,2938.2,2936.9,0.17039]
[1769023530671,3.66957375,2938.2,2936.8,0.00401535]
[1769023533375,3.66957375,2938.2,2936.8,0.17440535]
[1769023533770,3.66957375,2938.2,2936.9,0.17039]
[1769023535074,3.66957375,2938.2,2936.8,0.00401535]
[1769023535273,0.00348039,2938.5,2937.2,0.17037]
[1769023537183,3.67305414,2938.5,2936.9,2.372]
[1769023538685,3.67305414,2938.5,2936.8,0.00401535]
[1769023539084,3.67305414,2938.5,2937.1,0.17037]
[1769023540186,3.67305414,2938.5,2936.8,0.00401535]
[1769023541679,3.66957375,2938.3,2936.8,0.00401535]
[1769023545988,3.42618041,2938.1,2936.8,0.00401535]
[1769023546190,3.42618041,2937.7,2935.8,0.17045]
[1769023546391,3.42618041,2937.5,2935.8,0.17045]
[1769023546994,3.42618041,2937.3,2935.8,0.17045]
[1769023547195,3.42618041,2937.3,2935.8,0.17410874]
[1769023548190,3.42618041,2937.3,2935.8,0.00365874]
[1769023548388,1.46243364,2937.6,2935.2,0.17048]
[1769023548389,3.42618041,2937.1,2935.2,0.17048]
[1769023548691,3.42618041,2936.9,2935.2,0.17048]
[1769023548888,3.42618041,2936.7,2934.7,3.62208464]
[1769023549289,3.42618041,2936.7,2935.2,0.17048]
[1769023549486,3.42618041,2936.7,2935.2,0.17359514]
[1769023552195,3.42618041,2936.7,2935.4,0.17047]
[1769023552388,3.59655041,2937.2,2935.4,0.17047]
[1769023554292,3.42618041,2936.9,2935.2,0.00311514]
[1769023554491,3.59657041,2936.9,2935.2,0.00311514]
[1769023555097,3.42618041,2936.7,2935.2,0.00311514]
[1769023555298,3.42618041,2936.4,2934.3,7.86090069]
[1769023555499,3.59660041,2936.4,2934.3,7.86090069]
[1769023555693,3.59660041,2936.4,2934.2,0.17054]
[1769023555694,3.42618041,2936.1,2934.2,0.17054]
[1769023556195,3.42618041,2936.1,2933.8,7.86090069]
[1769023556196,3.42618041,2935.9,2934.3,0.17054]
[1769023556396,3.42871548,2935.9,2934.3,0.17434526]
[1769023557189,3.42871548,2935.9,2934.3,0.00380526]
[1769023557389,3.59916548,2935.9,2934.3,0.00380526]
[1769023558094,3.42618041,2935.6,2934.3,0.00380526]
[1769023558299,3.42618041,2935.4,2933.5,0.17058]
[1769023558793,3.42618041,2935.4,2933.5,3.79266464]
[1769023558987,3.42618041,2935.4,2933.6,3.34356374]
[1769023559190,3.37913744,2935.9,2934.3,3.51410374]
[1769023559397,3.37913744,2935.9,2934.4,0.17053]
[1769023562592,3.37913744,2935.9,2933.6,0.00371375]
[1769023562593,3.37913744,2935.9,2933.8,3.51413374]
[1769023562800,3.37913744,2935.9,2934.0,0.17055]
[1769023563200,3.54958744,2935.9,2934.0,0.17055]
[1769023563597,3.54958744,2935.9,2934.0,3.51411374]
[1769023563801,0.00253507,2935.9,2934.2,3.34356374]
[1769023564298,3.37913744,2935.9,2934.0,0.17055]
[1769023565295,3.37913744,2935.9,2934.1,0.17055]
[1769023565702,3.37913744,2935.9,2934.1,3.34356374]
[1769023566299,0.00253507,2935.9,2934.6,3.34356374]
[1769023566998,0.00253507,2935.9,2935.1,0.17049]
[1769023569102,3.37660237,2936.9,2935.3,0.17048]
[1769023570090,3.38030043,2936.9,2935.3,0.17048]
[1769023570295,0.00369806,2936.9,2935.4,3.51403374]
[1769023572706,0.00369806,2936.9,2935.4,0.17047]
[1769023573606,0.00369806,2936.9,2935.6,3.51402374]
[1769023574900,0.00369806,2936.9,2935.6,0.17046]
[1769023575305,3.38030043,2936.9,2935.6,0.17046]
[1769023579214,0.00369806,2936.9,2935.7,3.66600717]
[1769023579411,0.00369806,2936.9,2935.8,0.17045]
[1769023579608,13.95803154,2937.8,2935.8,0.17045]
[1769023579609,3.41969154,2937.7,2936.0,0.17044]
[1769023579807,3.41969154,2937.7,2936.1,3.66597717]
[1769023580008,3.6967156,2938.3,2936.3,3.49554717]
[1769023580709,3.6991798,2938.3,2936.3,3.49554717]
[1769023581113,3.8694898,2938.3,2936.4,0.17042]
[1769023581814,3.59002154,2937.9,2935.8,6.03799717]
[1769023582014,3.41969154,2937.7,2935.8,3.66599717]
[1769023582926,3.41969154,2937.5,2935.8,0.17045]
[1769023583511,3.41969154,2937.3,2935.7,0.00273065]
[1769023583714,3.59006154,2937.3,2935.7,0.00273065]
[1769023584720,3.41969154,2937.1,2935.7,0.00273065]
[1769023587222,1.894,2937.4,2935.7,0.00273065]
[1769023587223,3.41969154,2936.8,2935.7,0.00273065]
[1769023589121,3.41969154,2936.8,2934.9,0.1705]
[1769023590218,3.41969154,2936.8,2934.9,0.1743624]
[1769023590919,3.59010154,2936.6,2934.9,0.0038624]
[1769023591118,1.894,2937.4,2934.9,0.0038624]
[1769023591119,3.41969154,2936.4,2934.9,0.0038624]
[1769023592825,3.41969154,2936.2,2934.9,0.0038624]
[1769023593017,3.4224011,2936.2,2934.9,0.0038624]
[1769023594430,3.41969154,2936.0,2934.1,3.49554717]
[1769023594928,3.59015154,2935.7,2933.7,3.49554717]
[1769023595120,0.00270956,2936.2,2933.4,6.41910492]
[1769023595121,3.59017154,2935.3,2933.4,6.41910492]
[1769023595427,3.59017154,2935.3,2933.2,3.66614717]
[1769023595625,3.59017154,2935.3,2933.2,3.66888474]
[1769023595828,3.41969154,2935.0,2933.2,0.00273757]
[1769023596120,3.59019154,2935.0,2933.2,0.00273757]
[1769023596526,3.8625306,2935.0,2933.2,0.00273757]
[1769023596723,3.41969154,2935.0,2933.2,3.49828474]
[1769023596930,3.41969154,2935.0,2933.2,3.66888474]
[1769023599027,0.17048,2935.3,2933.5,3.66612717]
[1769023599624,3.59017154,2935.3,2933.5,0.17058]
[1769023600229,3.59017154,2935.3,2933.5,3.66612717]
[1769023601532,3.59017154,2935.3,2933.5,0.17058]
[1769023602220,3.59017154,2935.3,2933.3,2.372]
[1769023602420,3.41969154,2935.1,2933.3,2.372]
[1769023602821,3.59018154,2935.1,2933.3,2.372]
[1769023603030,3.41969154,2934.9,2933.3,2.372]
[1769023603226,3.41969154,2934.9,2933.2,0.00273757]
[1769023607236,0.17051,2934.8,2933.2,0.00273757]
[1769023607426,3.59591472,2934.7,2933.2,0.00273757]
[1769023607727,3.76643472,2934.7,2933.2,0.00273757]
[1769023607929,3.59591472,2934.4,2933.2,0.00273757]
[1769023609736,3.59591472,2934.8,2933.2,0.00273757]
[1769023610036,3.59591472,2934.6,2933.2,0.00273757]
[1769023611542,3.76643472,2934.6,2933.2,0.00273757]
[1769023611737,3.59591472,2934.4,2933.2,0.00273757]
[1769023614335,3.59591472,2934.2,2933.2,0.00273757]
[1769023614534,3.59591472,2934.2,2932.4,3.48244671]
[1769023614736,3.76645472,2934.2,2932.4,3.48244671]
[1769023615535,3.76645472,2934.2,2932.4,3.48682362]
[1769023616136,3.59591472,2934.7,2932.7,3.48244671]
[1769023616336,3.59591472,2934.6,2932.7,3.65307671]
[1769023616732,3.59591472,2934.6,2932.8,3.48244671]
[1769023616932,3.59591472,2934.6,2933.0,3.65305671]
[1769023617333,3.59591472,2934.6,2933.0,3.48244671]
[1769023617540,3.76643472,2934.6,2932.5,5.85444671]
[1769023618244,1.895,2934.9,2932.5,5.85444671]
[1769023618245,3.59591472,2934.3,2932.5,2.372]
[1769023618637,3.59591472,2934.1,2932.5,2.372]
[1769023618945,3.77060938,2934.1,2932.4,0.00437691]
[1769023620739,3.66946983,2933.9,2932.4,0.00437691]
[1769023620934,3.66948983,2933.7,2932.4,0.00437691]
[1769023621245,3.50305449,2934.1,2932.4,3.3041074]
[1769023623142,0.98183091,2934.0,2932.4,3.3041074]
[1769023623349,3.49890983,2934.0,2932.4,3.3041074]
[1769023629247,0.00414466,2934.1,2932.6,3.47036049]
[1769023629648,0.00414466,2934.1,2932.7,2.372]
[1769023629840,0.00414466,2934.1,2932.8,3.29973049]
[1769023630248,0.00414466,2934.1,2933.0,3.47034049]
[1769023630451,0.00414466,2934.1,2933.1,3.29973049]
[1769023630847,0.00414466,2934.1,2933.1,3.47033049]
[1769023631052,10.5385,2935.0,2933.1,3.47033049]
[1769023631250,3.49890983,2935.2,2933.3,3.47032049]
[1769023631451,1.14114899,2935.1,2933.3,3.47032049]
[1769023631651,0.98228862,2935.0,2933.3,3.47032049]
[1769023631955,0.00424635,2935.0,2933.3,3.47032049]
[1769023633445,0.00424635,2935.0,2933.8,3.47030049]
[1769023633848,0.00424635,2935.0,2933.9,3.47029049]
[1769023636754,10.368,2935.9,2934.2,3.4247626]
[1769023636954,3.43571425,2936.1,2934.2,3.4247626]
[1769023637159,3.43571425,2936.1,2934.3,3.4247526]
[1769023637855,3.43823183,2936.1,2934.3,3.4247526]
[1769023638854,0.00251758,2936.1,2934.5,3.4247426]
[1769023639060,0.00251758,2936.1,2934.7,3.2542226]
[1769023639265,0.00251758,2936.1,2934.7,3.4247326]
[1769023639666,0.00251758,2936.1,2934.9,3.2542226]
[1769023641760,10.368,2936.8,2935.1,3.2542226]
[1769023641958,3.43571425,2937.0,2935.1,3.2542226]
[1769023642768,3.43571425,2936.7,2934.7,5.6262226]
[1769023644365,3.43571425,2936.5,2934.7,5.6262226]
[1769023644667,3.60612425,2936.5,2934.7,2.372]
[1769023646562,3.43571425,2936.3,2934.7,2.372]
[1769023648566,3.60613425,2936.3,2934.7,2.372]
[1769023650174,3.43571425,2936.3,2934.8,3.2542226]
[1769023653171,3.43571425,2936.3,2934.8,5.6262226]
[1769023653467,6.48111951,2937.0,2935.2,3.2542226]
[1769023653667,0.00411951,2937.0,2935.4,3.4246926]
[1769023653868,0.00411951,2937.0,2935.6,3.4246826]
[1769023654571,0.00411951,2937.0,2935.7,3.4246826]
[1769023656765,0.43946723,2937.6,2935.2,2.372]
[1769023656766,3.43571425,2937.9,2936.2,3.2542226]
[1769023656975,1.83450277,2939.6,2937.9,3.2542226]
[1769023657166,3.43571425,2939.9,2937.9,3.4245526]
[1769023657570,0.25,2938.9,2937.1,0.17037]
[1769023657869,5.18102673,2940.5,2938.3,3.2542226]
[1769023658171,3.43571425,2939.9,2938.3,3.2542226]
[1769023658373,0.2795729,2940.2,2938.3,3.2542226]
[1769023658575,0.28106339,2940.5,2939.0,3.2542226]
[1769023658773,1.83450277,2942.4,2939.9,3.2542226]
[1769023658965,1.81610891,2943.4,2940.4,0.17018]
[1769023659168,1.77239564,2944.9,2941.6,3.2542226]
[1769023659381,1.46424909,2945.3,2941.7,1.894]
[1769023659570,0.05917497,2943.5,2942.0,0.17009]
[1769023659776,0.00297683,2943.5,2942.3,0.17007]
[1769023659977,3.43571425,2946.2,2943.3,0.04316214]
[1769023660184,3.43571425,2946.2,2943.6,0.04316214]
[1769023660373,0.55311429,2946.9,2944.4,1.46424909]
[1769023660578,3.43571425,2946.8,2944.2,0.04316214]
[1769023660775,3.43571425,2946.8,2944.1,0.16997]
[1769023660975,3.43898842,2946.8,2944.1,0.17430521]
[1769023661175,0.27885797,2946.9,2945.0,1.46424909]
[1769023661371,1.46424909,2948.8,2945.5,2.51101149]
[1769023661673,1.46424909,2948.8,2945.6,2.92061224]
[1769023661873,1.46424909,2949.2,2945.7,0.40960075]
[1769023662075,0.16967,2949.4,2945.8,0.16987]
[1769023662291,0.00278498,2949.2,2946.5,1.46424909]
[1769023662480,0.00278498,2949.2,2946.5,1.46768351]
[1769023662675,0.00278498,2949.2,2947.3,0.00509433]
[1769023662883,0.00278498,2949.2,2947.3,2.57066108]
[1769023663188,3.43571425,2949.1,2947.3,0.00509433]
[1769023663692,0.00278498,2949.2,2947.3,44.98719037]
[1769023664183,3.43849923,2949.2,2947.3,0.00509433]
[1769023664585,3.43849923,2949.2,2947.4,40.8]
[1769023664882,3.43849923,2949.2,2947.3,0.00509433]
[1769023665583,0.00278498,2949.2,2947.3,2.4843325]
[1769023665778,2.0,2950.0,2948.0,3.55531258]
[1769023665973,2.0,2950.0,2948.2,3.55531258]
[1769023666173,2.0,2950.0,2948.6,3.55531258]
[1769023666381,2.06046,2953.0,2949.0,3.55531258]
[1769023666583,0.43903914,2953.0,2949.6,3.55531258]
[1769023666881,0.00338101,2953.0,2950.4,3.55531258]
[1769023667480,0.00338101,2953.0,2950.3,0.16961]
[1769023667674,3.71784172,2952.9,2951.4,0.00508561]
[1769023668479,0.00338101,2953.0,2951.4,0.00508561]
[1769023669074,3.72122273,2953.0,2951.4,0.00508561]
[1769023669384,3.59090273,2953.0,2951.4,0.00508561]
[1769023669878,0.27661755,2953.3,2951.4,0.00508561]
[1769023670276,0.27911137,2953.3,2951.4,3.56039819]
[1769023670785,0.16931,2955.7,2951.4,3.56039819]
[1769023670786,1.88068065,2956.5,2952.3,3.55531258]
[1769023670979,0.05894968,2955.6,2952.6,3.55531258]
[1769023671181,0.26644327,2955.8,2952.6,3.72479258]
[1769023671387,0.16924,2956.9,2952.8,3.55531258]
[1769023671680,0.00309385,2956.9,2954.1,3.55531258]
[1769023672386,0.00309385,2956.9,2955.2,0.00507683]
[1769023672683,3.71784172,2958.6,2955.2,3.56306762]
[1769023672989,3.71784172,2958.3,2955.2,3.73239762]
[1769023673181,3.71784172,2957.9,2955.2,3.55799079]
[1769023673489,3.71784172,2955.8,2952.5,3.55531258]
[1769023673684,3.71784172,2955.8,2950.8,0.16958]
[1769023673685,3.71784172,2954.4,2950.8,3.55531258]
[1769023674387,3.7210601,2954.4,2951.7,0.16953]
[1769023674589,3.7210601,2954.4,2951.4,3.55531258]
[1769023674888,3.71784172,2953.7,2951.4,3.55531258]
[1769023675587,3.71784172,2954.3,2951.6,3.72485258]
[1769023675788,0.00321838,2954.4,2952.4,0.16949]
[1769023676084,0.00321838,2954.4,2953.1,0.16945]
[1769023676281,0.00321838,2954.4,2953.2,3.72476258]
[1769023676483,0.00321838,2954.4,2953.8,0.16941]
[1769023676785,3.71784172,2956.5,2954.1,3.72470258]
[1769023677384,3.71784172,2956.5,2953.1,0.00410735]
[1769023677385,3.71784172,2957.4,2954.7,3.55531258]
[1769023677585,3.7205287,2957.4,2955.2,0.16933]
[1769023677792,3.71784172,2957.1,2955.2,0.00359794]
[1769023677986,1.88068065,2955.5,2953.5,0.16942]
[1769023678283,3.71784172,2956.8,2953.6,3.55531258]
[1769023678488,0.16923,2957.1,2954.4,3.55531258]
[1769023678688,3.71784172,2957.3,2954.9,0.16935]
[1769023678880,3.71784172,2957.3,2955.1,0.16934]
[1769023679084,1.88336763,2957.4,2954.9,0.00329964]
[1769023679085,0.00268698,2957.4,2955.3,3.72463258]
[1769023679485,0.00268698,2957.4,2955.3,0.16932]
[1769023679986,0.00268698,2957.4,2954.9,0.00329964]
[1769023679987,5.51402997,2956.6,2954.9,0.00329964]
[1769023680180,3.63334932,2956.5,2953.3,3.61538916]
[1769023680485,0.00268698,2957.4,2952.8,1.88068065]
[1769023680486,3.63334932,2957.2,2954.5,0.16937]
[1769023680690,0.00268698,2957.4,2954.6,3.61538916]
[1769023680885,0.27441214,2959.6,2957.1,3.61538916]
[1769023681090,0.27441214,2959.6,2957.2,0.16921]
[1769023681285,0.27441214,2959.6,2957.4,3.61538916]
[1769023681481,0.05884084,2961.0,2958.7,3.61538916]
[1769023681785,0.05884084,2961.0,2956.2,6.64109524]
[1769023681786,0.00292905,2961.0,2959.0,3.61538916]
[1769023681991,0.00292905,2961.0,2959.0,0.00271466]
[1769023682179,0.16901,2960.9,2957.5,0.1692]
[1769023682383,1.88068065,2960.8,2957.5,0.1692]
[1769023682584,0.16902,2960.7,2957.5,0.1692]
[1769023682784,1.88068065,2960.0,2957.5,0.1692]
[1769023683089,3.63334932,2959.9,2957.5,0.1692]
[1769023683288,0.16889,2962.9,2958.0,3.61538916]
[1769023683487,0.1689,2962.8,2959.5,3.61538916]
[1769023683789,0.26599817,2962.8,2959.5,0.16908]
[1769023683990,0.16883,2964.1,2960.1,3.61538916]
[1769023684184,0.16861,2968.0,2961.2,3.61538916]
[1769023684389,0.02077441,2965.1,2963.1,0.16888]
[1769023684586,0.02077441,2965.1,2962.5,3.61538916]
[1769023684786,0.02077441,2965.1,2962.5,3.78429916]
[1769023684998,0.29040896,2965.1,2961.2,0.17250449]
[1769023685195,0.29040896,2965.1,2961.2,3.61891365]
[1769023685492,3.63334932,2965.0,2961.4,3.61538916]
[1769023685684,3.63334932,2964.6,2962.0,0.16894]
[1769023685886,3.63334932,2964.0,2961.4,3.61538916]
[1769023686097,3.63334932,2964.9,2961.4,3.61538916]
[1769023686388,0.00506781,2963.0,2961.4,0.16898]
[1769023686693,0.00506781,2963.0,2961.2,0.00352449]
[1769023686694,0.00849702,2963.0,2961.2,0.00352449]
[1769023686889,3.63334932,2962.9,2959.5,44.41538916]
[1769023687197,3.63334932,2960.8,2958.0,3.61538916]
[1769023687393,3.63334932,2960.8,2958.2,0.16916]
[1769023687587,5.51402997,2960.2,2957.5,3.61538916]
[1769023687798,3.63334932,2960.9,2957.7,3.61538916]
[1769023687996,0.00506781,2959.7,2958.3,0.16915]
[1769023688291,0.00506781,2959.7,2957.7,3.61821339]
[1769023689195,0.00506781,2959.7,2957.8,3.61538916]
[1769023689394,0.00506781,2959.7,2958.6,3.61538916]
[1769023689693,0.00323801,2960.9,2959.2,3.61538916]
[1769023689885,3.63334932,2962.8,2959.2,3.61538916]
[1769023690197,3.63334932,2962.0,2959.2,3.61538916]
[1769023690492,3.63334932,2962.0,2959.5,3.61538916]
[1769023690788,3.63334932,2961.8,2958.6,3.61538916]
[1769023690994,0.00330796,2961.8,2960.4,0.16903]
[1769023691190,0.00330796,2961.8,2960.4,0.17309459]
[1769023691490,0.00330796,2961.8,2959.0,3.61538916]
[1769023692187,0.00330796,2961.8,2959.4,3.61538916]
[1769023692390,0.00506781,2960.7,2959.6,0.16908]
[1769023692588,0.00506781,2960.7,2959.6,0.00347398]
[1769023692886,0.00506781,2960.7,2958.7,3.61538916]
[1769023693088,0.00506781,2960.7,2959.2,3.61538916]
[1769023693684,0.00330796,2961.8,2960.8,3.61538916]
[1769023693897,3.89920971,2963.5,2961.1,0.16899]
[1769023694097,1.88068065,2963.9,2961.6,0.16896]
[1769023694297,27.072,2965.5,2960.8,2.48100095]
[1769023694298,1.88068065,2963.2,2960.8,2.48100095]
[1769023694501,0.0183618,2965.1,2962.3,1.88068065]
[1769023694792,3.63678993,2965.1,2962.7,0.1689]
[1769023694991,1.88068065,2964.6,2963.4,0.00506781]
[1769023695499,3.63678993,2965.1,2963.4,0.00506781]
[1769023695794,3.46337747,2964.5,2962.3,0.00430975]
[1769023695988,0.00506781,2964.3,2962.3,0.00430975]
[1769023696293,0.00506781,2964.3,2962.5,0.16891]
[1769023696496,1.88574846,2964.3,2962.3,0.00430975]
[1769023696698,3.46337747,2963.5,2960.5,0.16903]
[1769023696896,3.46337747,2963.1,2960.5,0.16903]
[1769023697194,3.46337747,2963.1,2960.2,0.26580066]
[1769023697499,3.46337747,2961.9,2959.4,0.16909]
[1769023697691,3.73231372,2961.9,2959.4,0.17274249]
[1769023697994,3.73231372,2961.9,2959.4,3.39470328]
[1769023697995,3.46689239,2961.9,2959.4,3.39470328]
[1769023698194,0.00351492,2961.9,2959.4,3.39470328]
[1769023698400,0.00351492,2961.9,2960.3,0.16904]
[1769023698597,0.00351492,2961.9,2960.5,0.16903]
[1769023698800,0.00351492,2961.9,2959.4,3.39470328]
[1769023698801,0.00351492,2961.9,2960.1,3.39105079]
[1769023699191,3.46337747,2963.5,2962.0,0.16894]
[1769023699397,3.46337747,2964.3,2961.2,3.39105079]
[1769023699795,27.057,2964.8,2961.4,3.39105079]
[1769023699999,3.46337747,2965.2,2962.7,0.1689]
[1769023700199,3.46773145,2965.2,2962.8,0.16889]
[1769023700397,3.46773145,2965.2,2962.7,0.00398455]
[1769023700598,3.46773145,2965.2,2962.7,3.39503534]
[1769023700801,0.00435398,2965.2,2963.5,0.16885]
[1769023701000,0.00435398,2965.2,2962.7,3.39503534]
[1769023701193,0.00435398,2965.2,2963.7,0.16884]
[1769023701596,0.00435398,2965.2,2963.1,0.16888]
[1769023702100,0.00435398,2965.2,2962.7,3.39503534]
[1769023702101,3.46337747,2965.0,2962.7,0.00398455]
[1769023702300,0.00435398,2965.2,2963.1,0.16888]
[1769023702502,0.00435398,2965.2,2962.8,3.39105079]
[1769023702808,0.16862,2967.8,2964.7,3.39105079]
[1769023702996,0.26421472,2968.5,2965.6,3.39105079]
[1769023703195,0.83532964,2969.0,2966.2,3.39105079]
[1769023703196,0.66677964,2969.0,2966.2,3.39105079]
[1769023703395,0.66677964,2969.0,2966.5,3.39105079]
[1769023703706,3.46337747,2970.3,2967.0,3.39105079]
[1769023703904,3.46337747,2970.0,2967.5,0.16863]
[1769023704112,3.46337747,2970.0,2967.0,0.0025649]
[1769023704303,3.73574062,2970.0,2967.0,0.0025649]
[1769023705010,3.90423062,2970.0,2967.0,0.0025649]
[1769023705215,3.46337747,2969.1,2967.0,0.0025649]
[1769023705408,0.0034309,2970.3,2967.8,3.39105079]
[1769023705610,0.26678648,2971.5,2968.3,3.39105079]
[1769023705813,3.46337747,2972.2,2968.5,3.39105079]
[1769023706207,3.46337747,2972.2,2968.4,0.16857]
[1769023706208,0.1684,2971.6,2967.0,3.56227569]
[1769023706410,3.46337747,2971.5,2967.2,3.39105079]
[1769023706607,3.46698308,2971.5,2967.8,3.39105079]
[1769023707304,3.46698308,2971.5,2968.3,3.39105079]
[1769023707511,0.00360561,2971.5,2968.9,3.39105079]
[1769023707815,0.00360561,2971.5,2969.0,3.55959079]
[1769023708210,3.46698308,2971.5,2969.9,0.00505595]
[1769023708406,3.46337747,2971.0,2967.4,3.39105079]
[1769023708612,0.00505595,2970.5,2967.4,3.39105079]
[1769023709009,0.00505595,2970.5,2966.2,3.55975079]
[1769023709213,0.1685,2969.8,2964.7,3.39105079]
[1769023709514,5.70813844,2969.7,2964.7,3.39524908]
[1769023709713,0.1686,2968.1,2964.7,0.00419829]
[1769023709911,0.17161914,2968.1,2964.7,3.39524908]
[1769023710111,0.00505595,2967.5,2964.7,0.00419829]
[1769023710618,3.46337747,2967.4,2964.7,0.00419829]
[1769023711914,3.46337747,2967.4,2964.7,3.39524908]
[1769023712108,3.46337747,2967.4,2964.7,0.00419829]
[1769023712308,3.46337747,2967.0,2964.7,0.00419829]
[1769023712512,3.46337747,2967.0,2963.1,3.39105079]
[1769023712708,3.46337747,2966.8,2963.1,3.39105079]
[1769023713009,3.46337747,2966.6,2963.1,3.39105079]
[1769023713216,3.46337747,2966.6,2963.5,3.39105079]
[1769023713514,0.00505595,2965.2,2963.5,0.00304969]
[1769023713715,0.00912504,2965.2,2963.5,0.00304969]
[1769023714310,3.46337747,2967.5,2964.5,3.39105079]
[1769023715108,3.46337747,2968.5,2964.7,0.16879]
[1769023715307,3.4660976,2968.5,2964.9,0.16877]
[1769023715517,3.73106196,2968.5,2965.0,3.39105079]
[1769023715721,3.73106196,2968.5,2966.3,0.00505595]
[1769023715918,3.73106196,2968.5,2966.3,0.0091085]
[1769023716213,0.00272013,2968.5,2966.3,3.40015929]
[1769023716621,3.4660976,2968.5,2966.3,0.0091085]
[1769023716821,0.00272013,2968.5,2966.3,3.40015929]
[1769023718714,0.00272013,2968.5,2966.3,0.0091085]
[1769023718923,3.4660976,2968.5,2966.3,0.0091085]
[1769023719120,0.00272013,2968.5,2966.3,0.0091085]
[1769023719424,0.00272013,2968.5,2966.3,3.40015929]